[Event "25th Mediterranean Flower 2025"]
[Site "Rijeka"]
[Date "2025.03.03"]
[Round "2.2"]
[White "Medic, Mirjana"]
[Black "Vidic, Teja"]
[Result "1/2-1/2"]
[Annotator "TA"]
[ECO "D12"]
[WhiteElo "2069"]
[BlackElo "2088"]
[PlyCount "145"]
[EventDate "2025.03.02"]
[EventType "tourn"]
[EventCountry "CRO"]
[SourceTitle "playchess.com"]
[Source "ChessBase"]
[SourceQuality "1"]
[TimeControl "5400+30"]

{[%evp 15,145,36,29,22,27,0,1,0,2,0,0,-18,-2,-83,-72,-69,-23,-68,-23,-85,-41,-94,-90,-114,-78,-116,-109,-135,-135,-157,-72,-66,-58,-84,-91,-230,-162,-217,-132,-145,-66,-72,-71,-106,-105,-152,-181,-190,-98,-379,-372,-680,-288,-270,-271,-463,-168,-463,-468,-492,-54,-213,-108,-117,0,0,0,0,-15,-7,-3,-360,-64,-52,-94,-92,-85,-83,0,0,0,-122,-113,-108,-97,-149,-150,-244,-260,-607,-460,-426,-452,-461,-460,-458,-409,-439,-209,-199,0,0,0,0,0,0,0,0,0,0,0,0,0,0,0,0,0,0,8,0,0,0,8,0,8,0,0,0,8,0,0,0]} 1. d4 {[%emt 0:01:11]} d5 {[%emt 0:00:07]} 2. c4 {[%emt 0:00:31]} c6 {[%emt 0:00:05]} 3. e3 {[%emt 0:01:12]} Nf6 {[%emt 0:00:15]} 4. Nc3 {[%emt 0:00:33]} Bf5 {[%emt 0:00:07]} 5. Nf3 {[%emt 0:00:25]} e6 {[%emt 0:00:31]} 6. Nh4 {[%emt 0:07:32]} Be4 {[%emt 0:00:15]} 7. f3 {[%emt 0:00:29]} Bg6 {[%emt 0:00:05]} 8. Qb3 {[%emt 0:01:30]} Qc7 {[%emt 0:00:11]} 9. Nxg6 {[%emt 0:01:43] D12: Slav Defence: 3 Nf3 Nf6 4 e3 Bf5.} hxg6 {[%emt 0:00:09]} 10. cxd5 {[%emt 0:00:31]} cxd5 {[%emt 0:06:03][%cal Of8d6]} 11. Bd2 {[%emt 0:04:28]} a6 {[%emt 0:05:03][%cal Ob8c6]} 12. Rc1 {[%emt 0:07:19][%cal Oc3d5]} Nc6 $1 {[%emt 0:00:26][%cal Of8d6]} 13. Na4 {[%emt 0:05:54]} Nd7 $146 {[%emt 0:01:26][%cal Oa8b8]} (13... Bd6 14. h3 Bg3+ 15. Kd1 g5 16. Nc5 Ra7 17. Qc3 Ne7 18. Bd3 g4 19. Kc2 gxf3 20. gxf3 {1-0 Ren,X (2078)-Ning,D (1498) CHN-chT (Women) 2023 (3.2)}) 14. Nc5 {[%emt 0:09:08]} (14. Bd3 $11) 14... Bxc5 $17 {[%emt 0:16:50]} (14... Rxh2 $2 15. Rxh2 (15. Qxb7 Qxb7 16. Nxb7 Rxh1 $19) 15... Bxc5 (15... Nxc5 $2 16. dxc5 g5 17. Kd1 $18) 16. dxc5 $18) 15. dxc5 {[%emt 0:00:09]} Rc8 {[%emt 0:00:20]} (15... Rxh2 $2 16. Rxh2 O-O-O 17. Rh3 $18) (15... O-O-O $15 {should be considered.} 16. h3 Qg3+ 17. Ke2 d4) 16. Be2 $11 {[%emt 0:10:50]} g5 {[%emt 0:17:18][%cal Oc6e7]} (16... Rxh2 17. Rxh2 Qxh2 18. Qxb7 Rc7) 17. Kf2 {[%emt 0:03:44]} (17. g3 $11 {remains equal.}) 17... g4 {[%emt 0:19:17]} (17... Rxh2 $6 18. Rxh2 Qxh2 19. Qxb7 $16) 18. f4 {[%emt 0:07:45]} (18. fxg4 $15 Nf6 (18... Rxh2 19. Rxh2 Qxh2 20. Qxb7 $16) 19. Bf3) 18... Nf6 {[%emt 0:02:16]} 19. Bd3 {[%emt 0:00:34]} e5 {[%emt 0:01:33]} 20. g3 {[%emt 0:03:30]} Kf8 {[%emt 0:08:42]} (20... Rd8 21. Kg2 Kf8 22. h3 Ne4) 21. Qa4 {[%emt 0:03:16]} Re8 {[%emt 0:01:08]} 22. Rce1 {[%emt 0:00:27]} exf4 {[%emt 0:03:59]} (22... Qd7 23. Bc3 d4 24. exd4 exf4 (24... exd4 $2 25. Rxe8+ Qxe8 26. Bxd4 $19)) 23. exf4 $17 {[%emt 0:02:35]} Rxe1 {[%emt 0:00:05]} (23... Re7 {seems wilder.} 24. Kg2 Rh5 25. Re3 Rxe3 26. Bxe3 Qe7) 24. Bxe1 {[%emt 0:00:10]} Qe7 {[%emt 0:00:15]} 25. Qa3 {[%emt 0:07:25]} (25. Bd2 $17) 25... Ne4+ {[%emt 0:00:54]} 26. Kf1 {[%emt 0:00:58]} (26. Kg2 {is the only way for White.}) 26... g6 {[%emt 0:06:01]} (26... Nxc5 27. Bb1) (26... Qxc5 27. Qxc5+ Nxc5 28. Bf5 $11) 27. b4 {[%emt 0:01:15]} Kg7 {[%emt 0:02:39]} (27... Rh3 $17 28. Kg2 d4) 28. Qb2+ $15 {[%emt 0:00:17]} d4 {[%emt 0:00:49][%csl Od4] Black has a strong passed pawn} 29. Qe2 {[%emt 0:03:28]} Re8 {[%emt 0:00:32]} 30. a3 {[%emt 0:02:32]} (30. Bxe4 $142 Qxe4 31. Qxe4 Rxe4 32. h3 gxh3 33. Bd2) 30... f5 $17 {[%emt 0:00:32]} 31. h3 {[%emt 0:00:46]} Qd7 {[%emt 0:03:37]} (31... Qf7 $1 $19 {[%cal Oe4g3] Strongly threatening ...Nxg3+!.} 32. Bc4 Nd2+ 33. Bxd2 Rxe2 34. Bxf7 Rxd2) 32. Qc2 $2 {[%emt 0:03:20][%mdl 8192]} (32. Bxe4 $17 fxe4 (32... Rxe4 $2 33. Qh2 $19) 33. hxg4) 32... Qd5 $19 {[%emt 0:00:35][%cal Oe4g3] ( -> ...Nxg3+!)} 33. Rh2 $2 {[%emt 0:00:47]} (33. Qg2 Qb3 34. Qc2 Qxa3 35. hxg4) 33... Nf6 {[%emt 0:01:03]} (33... Nxg3+ $142 34. Bxg3 Qf3+ 35. Bf2 g3 (35... gxh3 36. Qd2 $18)) 34. Bf2 {[%emt 0:02:48]} Qf3 {[%emt 0:01:26]} 35. Kg1 $2 {[%emt 0:00:44]} (35. Be2 {was worth a try.} Qxa3 36. b5 axb5 (36... Nb4 $2 37. Qd2 $19) 37. hxg4 Nxg4 38. Bxg4 fxg4 39. Qd1 Qxc5 (39... Qf3 $2 40. Qxf3 gxf3 41. Be1 $19) 40. Qxg4) 35... Ne4 $2 {[%emt 0:00:45]} (35... gxh3 36. Rxh3 Ng4) 36. Be2 $2 {[%emt 0:01:55]} (36. Qe2) 36... Qxa3 {[%emt 0:00:17]} 37. hxg4 {[%emt 0:00:10]} Nxg3 $2 {[%emt 0:01:24] Excellent horsemanship.} (37... Qxb4 38. gxf5 Nxf2 (38... gxf5 39. Rh5 $17) (38... Qxc5 39. Qxc5 Nxc5 40. Bf3 $16) 39. Rxf2 $17) (37... Nxf2 $19 38. Rxf2 Qxg3+ 39. Kf1 fxg4 (39... Nxb4 $2 40. Qa4 $19)) 38. Bd1 $2 {[%emt 0:01:05]} (38. Bd3 $1 $15) 38... d3 {[%emt 0:00:48]} (38... Nxb4 39. Qd2 (39. Bxd4+ Kf8 $18) 39... Qd3 40. Bxd4+ Kf8 41. Rh8+ Kf7 42. Rh7+ Kg8 43. Rg7+ Kf8 44. Qxd3 Re1+ 45. Kg2 Nxd3 46. Kxg3 $11) (38... fxg4 $19 39. Bxg4 Ne4 (39... Nxb4 40. Bxd4+ Kf8 41. Rh8+ Ke7 42. Rxe8+ Kxe8 43. Qxg6+ Kd8 44. Qd6+ Ke8 45. Bd7+ Kf7 46. Qf6+ Kg8 47. Qg7#)) 39. Qc4 $17 {[%emt 0:01:47]} Qa1 {[%emt 0:01:27] Wards off Bd4+} (39... Qxb4 $2 40. Bd4+ (40. Qxd3 $2 Rd8 $19) (40. Qxb4 Nxb4 41. Bxg3 fxg4 $16) 40... Kf8 (40... Nxd4 41. Qxb4 Re4 42. Qxb7+ Kf6 43. g5+ Ke6 44. Bb3+ Nxb3 45. Qc6+ Kf7 46. Rh7+ Kg8 47. Qxg6+ Kf8 48. Qf7#) 41. Rh8+ Ke7 42. Rh7+ Kd8 43. Qd5+ Kc8 44. Qd7+ Kb8 45. Qxe8+ $18) (39... Ne2+ $1 $17 40. Bxe2 Qa1+ (40... dxe2 41. Bd4+ $11) 41. Kg2 (41. Bf1 $2 d2 $19) 41... dxe2 (41... Rxe2 42. Qxd3 Nd4 43. Kg3 $11) 42. Rh7+ Kxh7 43. Qf7+ Qg7 (43... Kh6 44. g5+ Kh5 45. Qh7+ Kg4 46. Qh4#) 44. Qxe8 Nxb4 (44... fxg4 45. Qxe2 Qd7 46. Qc4 $17) 45. Qxe2 Nd5) 40. Rh7+ $1 $11 {[%emt 0:03:45]} Kxh7 {[%emt 0:00:05]} 41. Qf7+ {[%emt 0:00:04]} Qg7 {[%emt 0:00:09]} 42. Qxe8 {[%emt 0:00:03]} Ne4 $36 {[%emt 0:00:34][%mdl 2048] Black is pushing.} (42... Ne2+ {simplifies} 43. Bxe2 dxe2 44. Qxe2 Qd7) 43. Be3 $2 {[%emt 0:02:07][%mdl 8192]} (43. gxf5 $1 $11 gxf5+ 44. Kf1) 43... Nxb4 $2 {[%emt 0:00:11]} (43... Qe7 $19 44. Qc8 Nc3 (44... Nxb4 $2 45. Bd4 $18)) 44. Qd8 $15 {[%emt 0:00:16]} Nc2 {[%emt 0:01:41]} 45. Qh4+ {[%emt 0:01:18]} Kg8 {[%emt 0:00:12]} 46. Qd8+ {[%emt 0:00:03] [#]} Kh7 {[%emt 0:00:03]} (46... Qf8 $1 $17 {[%cal Rf8d8]} 47. Qd5+ Kh8 48. Bxc2 dxc2) 47. Qh4+ $11 {[%emt 0:00:05]} Kg8 {[%emt 0:00:03]} ({Black should play} 47... Qh6 $11 48. Qe7+ Qg7) 48. Qd8+ $17 {[%emt 0:00:05] [#]} Qf8 $1 {[%emt 0:00:44]} 49. Qd5+ {[%emt 0:00:12]} Kh8 {[%emt 0:01:25]} 50. Bxc2 {[%emt 0:01:12]} (50. Qe5+ $142 Kh7 51. Qc7+ Qg7 52. Qd8) 50... dxc2 {[%emt 0:00:12][%mdl 4096] Endgame KQB-KQN. Black is two pawns up.} 51. Bd4+ {[%emt 0:00:04]} (51. Qc4 $17) 51... Kh7 $19 {[%emt 0:00:50]} 52. Qc4 $2 {[%emt 0:00:36]} (52. Qd7+ Kh6 53. g5+ Nxg5 (53... Kh5 54. Qh7+ Kg4 55. Kg2 $11) 54. fxg5+ Kh5 55. Qh7+ Kxg5 (55... Kg4 $2 56. Kg2 $19) 56. Be3+ f4 57. Bc1) 52... fxg4 {[%emt 0:00:31]} 53. Be3 {[%emt 0:00:56] Prevents Nd2} Qf5 {[%emt 0:00:33]} 54. Qxc2 {[%emt 0:00:04]} Qd5 {[%emt 0:00:25]} 55. Qh2+ {[%emt 0:01:18]} Kg8 {[%emt 0:00:04]} 56. Qe2 {[%emt 0:00:33] Prevents Qd1+} Nc3 {[%emt 0:00:55]} ({Less strong is} 56... Nxc5 57. Qxg4 Kf7 58. Qc8 $19) (56... g3 $142 57. c6 Qxc6 (57... bxc6 58. Qxa6 Kf7 59. Qa1 $19)) 57. Qxg4 {[%emt 0:00:16]} Qd1+ $2 {[%emt 0:00:05]} (57... Qf5 $19 58. Qf3 Qe6) 58. Qxd1 $11 {[%emt 0:00:08] The position is equal.} Nxd1 {[%emt 0:00:03] KB-KN. Black is a pawn up.} 59. Bd4 {[%emt 0:00:09] Hoping for Kf1.} Kf7 {[%emt 0:00:37]} 60. Kf1 {[%emt 0:00:03]} Ke6 {[%emt 0:00:04]} 61. Ke2 {[%emt 0:00:36]} Kd5 {[%emt 0:00:03]} 62. Bg7 {[%emt 0:00:20]} Kxc5 {[%emt 0:01:22]} 63. Kxd1 {[%emt 0:00:01] KB-K3P} Kc4 {[%emt 0:00:48]} 64. Kc2 {[%emt 0:00:05]} a5 {[%emt 0:00:07]} 65. Kb2 {[%emt 0:01:02]} b5 {[%emt 0:00:30]} 66. Bf6 {[%emt 0:00:33]} Kd3 {[%emt 0:01:06]} 67. Kb3 {[%emt 0:01:34]} Ke4 {[%emt 0:00:23]} 68. Bg5 {[%emt 0:00:09]} Kd3 {[%emt 0:00:13]} 69. Bh6 {[%emt 0:00:34]} Kd4 {[%emt 0:00:20]} 70. Bg5 {[%emt 0:00:34]} Ke4 {[%emt 0:00:07]} 71. Bh6 {[%emt 0:00:56]} Kd3 {[%emt 0:00:25]} 72. Bg5 {[%emt 0:00:08]} Kd4 {[%emt 0:00:41]} 73. Bh6 {[%emt 0:00:06] Black had all chances to win.   Weighted Error Value: White=0.68/Black=0.61  Loses game:     	White=2     	---        Missed win:     	---       	Black=3      Mistake:       	White=13    	Black=11     Inaccurate:     	White=4     	Black=4      OK:         	White=18    	Black=17     Best:        	White=4     	Black=8      Strong:       	White=1     	Black=2} 1/2-1/2

[Event "25th Mediterranean Flower 2025"]
[Site "Rijeka"]
[Date "2025.03.03"]
[Round "2.3"]
[White "Kejzar, Petra"]
[Black "Hajdinic, Ema"]
[Result "0-1"]
[Annotator "TA"]
[ECO "E05"]
[WhiteElo "2052"]
[BlackElo "1914"]
[PlyCount "62"]
[EventDate "2025.03.02"]
[EventType "tourn"]
[EventCountry "CRO"]
[SourceTitle "playchess.com"]
[Source "ChessBase"]
[SourceQuality "1"]
[TimeControl "5400+30"]

{[%evp 13,62,12,22,-4,53,44,41,0,0,0,0,0,0,-19,0,0,0,0,0,-131,-130,-132,-135,-133,-130,-134,-126,-129,-96,-104,-110,-114,-104,-168,-137,-191,-219,-289,-285,-353,-357,-577,-553,-552,-556,-537,-535,-633,-629,-840,-787]} 1. d4 {[%emt 0:00:03]} Nf6 {[%emt 0:00:12]} 2. c4 {[%emt 0:00:07]} e6 {[%emt 0:00:04]} 3. Nf3 {[%emt 0:00:05]} d5 {[%emt 0:00:05]} 4. g3 {[%emt 0:00:10]} Be7 {[%emt 0:00:04]} 5. Bg2 {[%emt 0:00:06]} O-O {[%emt 0:00:05]} 6. O-O {[%emt 0:00:05]} dxc4 {[%emt 0:00:06]} 7. Qc2 {[%emt 0:00:08]} a6 {[%emt 0:00:04]} 8. Rd1 {[%emt 0:00:12][%cal Of3e5] E05: Open Catalan: 5 Nf3 Be7.} Bd7 {[%emt 0:03:50]} ({Better is} 8... b5 $11) 9. Qxc4 $14 {[%emt 0:00:17]} Bc6 {[%emt 0:00:39]} 10. Nc3 {[%emt 0:00:41] White is slightly better.} b5 {[%emt 0:02:14][%cal Bb7b5,Bb5b4][%mdl 32]} 11. Qb3 {[%emt 0:09:53][%cal Od4d5]} b4 {[%emt 0:01:31]} 12. Nb1 $146 {[%emt 0:05:31]} (12. Na4 Qe8 13. Nc5 Bxc5 14. dxc5 Ba4 15. Qd3 Bxd1 16. Qxd1 Nc6 17. Bg5 Rd8 18. Qa4 {0-1 Korobov,A (2666)-Hayrapetyan,H (2432) Titled Tuesday intern op 20th Feb Early blitz 2024 (7)}) 12... Bd5 {[%emt 0:03:02]} 13. Qc2 {[%emt 0:08:02]} Be4 $36 {[%emt 0:00:50][%mdl 2048] Black has good play.} 14. Qd2 {[%emt 0:11:12]} Nbd7 {[%emt 0:03:04]} 15. Qe1 {[%emt 0:03:28]} Nd5 {[%emt 0:16:19]} 16. Nbd2 {[%emt 0:02:11]} (16. Qf1 $11) 16... Bc2 $17 {[%emt 0:00:44]} 17. e4 {[%emt 0:00:37]} N5b6 {[%emt 0:01:04][%cal Oc7c5] Black is much more active.} 18. b3 {[%emt 0:01:50]} c5 {[%emt 0:03:30]} 19. Bb2 {[%emt 0:00:26]} Bxd1 {[%emt 0:00:09]} 20. Rxd1 {[%emt 0:00:07]} cxd4 {[%emt 0:02:43]} 21. Nxd4 {[%emt 0:02:12]} Rc8 {[%emt 0:00:49] Prevents Nc6.} 22. e5 {[%emt 0:01:10]} Nd5 {[%emt 0:08:57]} 23. h4 {[%emt 0:02:30]} (23. Bxd5 $17 {is a better defense.} exd5 24. N2f3) 23... Bc5 {[%emt 0:07:20]} 24. N2f3 {[%emt 0:07:20]} (24. Ne4 $17) 24... Qa5 $19 {[%emt 0:06:35][%cal Od5c3]} 25. Qe4 {[%emt 0:03:54]} Rfd8 {[%emt 0:01:01][%cal Oc5d4]} ({Don't play} 25... Qxa2 26. Rd2 $19) 26. Ng5 {[%emt 0:01:08]} Nf8 {[%emt 0:00:22]} (26... Qxa2 27. Qxh7+ Kf8 28. Ngxe6+ (28. Qh8+ Ke7 $18) 28... fxe6 29. Nxe6+ Ke8 30. Nxg7+ (30. Rxd5 Qxb2 31. Nxg7+ Kf8 $18) 30... Ke7 31. Nf5+ (31. Ne6+ Ke8 $18) 31... Ke8 32. e6) 27. Bh3 $2 {[%emt 0:06:40] [#]} (27. Qf3 Rd7 (27... Qxa2 28. Qxf7+ Kh8 29. Ndxe6 $16) 28. Rd2) 27... Bxd4 {[%emt 0:03:33] Black is clearly winning.} 28. Bxd4 {[%emt 0:00:30]} h6 {[%emt 0:01:17]} 29. Nxf7 {[%emt 0:02:33]} Kxf7 {[%emt 0:01:22]} 30. Rd3 {[%emt 0:03:55]} Kg8 {[%emt 0:02:01]} 31. Rf3 {[%emt 0:00:22][%cal Of3f8]} Nc3 {[%emt 0:01:33] Weighted Error Value: White=0.58/Black=0.10 (very precise)   Mistake:       	White=4     	Black=1      Inaccurate:     	White=3     	---        OK:         	White=7     	Black=12     Best:        	White=1     	Black=2} 0-1

[Event "25th Mediterranean Flower 2025"]
[Site "Rijeka"]
[Date "2025.03.03"]
[Round "2.4"]
[White "Zagorac, Lara"]
[Black "Berke, Ana"]
[Result "0-1"]
[Annotator "TA"]
[ECO "D02"]
[WhiteElo "2061"]
[BlackElo "2119"]
[PlyCount "126"]
[EventDate "2025.03.02"]
[EventType "tourn"]
[EventCountry "CRO"]
[SourceTitle "playchess.com"]
[Source "ChessBase"]
[SourceQuality "1"]
[TimeControl "5400+30"]

{[%evp 9,126,17,6,7,11,10,2,0,4,-8,-8,-11,-21,-16,-8,-20,0,0,12,-11,-7,-29,-33,-34,-17,-53,-58,-93,-96,-91,-85,-93,-98,-94,-99,-93,-89,-91,-98,-153,-147,-191,-154,-156,-72,-79,-72,-107,-77,-99,-64,-165,-165,-183,-180,-164,-103,-109,-111,-118,-45,-84,-59,-77,-77,-70,-83,-44,-34,-234,-242,-225,-233,-226,-209,-487,-418,-380,-368,-371,-365,-557,-555,-473,-461,-626,-574,-578,-473,-631,-542,-609,-575,-532,-450,-1491,-1439,-1365,-1189,-1367,-1363,-1294,-1191,-6203,-6087,-6705,-2395,-6733,-6529,-29978,-29979,-29987,-29988,-29988,-29989,-29989,-29990,-29990,-29991]} 1. Nf3 {[%emt 0:00:01][%cal Bg1f3,Bf3d4,Bd4b5,Bb5c3,Bc3d5][%mdl 32]} d5 {[%emt 0:02:29]} 2. g3 {[%emt 0:00:20]} g6 {[%emt 0:00:46]} 3. Bg2 {[%emt 0:00:53]} Bg7 {[%emt 0:00:09]} 4. d4 {[%emt 0:00:22]} c5 {[%emt 0:01:37]} 5. O-O {[%emt 0:03:12]} cxd4 {[%emt 0:03:01]} 6. Nxd4 {[%emt 0:00:20][%cal Oc2c4] D02: 1 d4 d5 2 Nf3 sidelines, including 2...Nf6 3 g3 and 2...Nf6 3 Bf4.} e5 {[%emt 0:02:24]} 7. Nb5 {[%emt 0:14:31]} a6 {[%emt 0:07:19]} 8. N5c3 {[%emt 0:07:45] The position is equal.} d4 {[%emt 0:02:17]} 9. Nd5 {[%emt 0:01:29]} Nc6 {[%emt 0:03:59]} 10. e3 {[%emt 0:04:41]} Be6 $146 {[%emt 0:04:09]} ({Predecessor:} 10... Nge7 11. Nxe7 Qxe7 12. exd4 Nxd4 13. Nc3 Be6 14. Nd5 Bxd5 15. Bxd5 e4 16. c3 Rd8 17. Bxf7+ Qxf7 18. cxd4 Rxd4 {0-1 Sanchez Guirado,F (2335)-Moskalenko,V (2505) Aviles op 1992}) 11. c4 {[%emt 0:04:04]} Nge7 {[%emt 0:05:44][%cal Re7d5]} 12. exd4 {[%emt 0:06:05]} exd4 {[%emt 0:03:58][%cal Re7d5]} 13. Bg5 {[%emt 0:02:54]} O-O {[%emt 0:02:56][%cal Oh7h6]} 14. Re1 {[%emt 0:08:17]} h6 $1 {[%emt 0:04:00]} 15. Nxe7+ {[%emt 0:05:23] A sharp opening} Nxe7 {[%emt 0:00:24]} 16. Bxe7 {[%emt 0:08:00]} Qxe7 {[%emt 0:00:37]} 17. Bd5 {[%emt 0:00:22]} Qf6 $1 {[%emt 0:03:58]} 18. Nd2 {[%emt 0:07:56]} Bxd5 $1 {[%emt 0:03:49]} 19. cxd5 {[%emt 0:00:06]} Rad8 {[%emt 0:08:30]} 20. Ne4 {[%emt 0:08:15]} Qb6 {[%emt 0:01:15]} 21. d6 {[%emt 0:00:22][%cal Ob2b4]} f5 $1 {[%emt 0:02:46]} 22. Nd2 {[%emt 0:00:14]} Qxd6 {[%emt 0:00:55]} (22... Rxd6 $2 23. Nc4 Qd8 24. Nxd6 Qxd6 25. Qb3+ Kh7 26. Qxb7 $18) 23. Qb3+ {[%emt 0:00:14]} Qd5 {[%emt 0:01:08]} 24. Qb6 {[%emt 0:04:06]} (24. Re7 $142) 24... Rd6 $36 {[%emt 0:03:25][%mdl 2048] Black is on the roll.} 25. Qb4 {[%emt 0:00:46]} a5 {[%emt 0:01:45]} 26. Qc4 {[%emt 0:01:28]} Qxc4 {[%emt 0:05:32]} (26... d3 $142 {[%cal Ob7b5]} 27. Rad1 Bxb2) 27. Nxc4 {[%emt 0:00:01]} Rd5 {[%emt 0:00:33]} 28. a4 {[%emt 0:01:09]} f4 {[%emt 0:03:14]} 29. Rad1 {[%emt 0:04:13]} d3 {[%emt 0:01:05]} 30. Nb6 {[%emt 0:01:26]} (30. Kf1 $15) 30... Rd4 $19 {[%emt 0:01:16]} 31. b3 {[%emt 0:01:59]} fxg3 {[%emt 0:02:56]} 32. hxg3 {[%emt 0:00:24] [#]} Rfd8 {[%emt 0:01:06]} (32... d2 33. Re2 $17) (32... Rdd8 $1 $19 33. Nc4 Bd4) 33. Nc4 $17 {[%emt 0:00:59][%cal Oe1e6]} R4d5 {[%emt 0:00:28]} 34. Re3 {[%emt 0:01:20]} Bc3 {[%emt 0:01:29]} (34... Bd4 $17 {...b5 would now be deadly.} 35. Rf3 g5) 35. Kg2 {[%emt 0:01:10]} h5 {[%emt 0:01:47]} 36. Kf3 {[%emt 0:00:37]} Kf7 {[%emt 0:02:56] Black is more active.} 37. Ke4 {[%emt 0:00:55][%cal Re3d3]} Rd4+ {[%emt 0:01:17]} 38. Kf3 {[%emt 0:00:02]} R4d7 {[%emt 0:01:32]} 39. Ke4 $2 {[%emt 0:02:28] Now White is beyond hope.} (39. Nb6 $15 Rd4 40. Nc4) 39... Re7+ {[%emt 0:04:31]} 40. Kf3 {[%emt 0:00:00]} Rxe3+ {[%emt 0:00:59]} 41. Kxe3 $19 {[%emt 0:00:08][%mdl 4096] Endgame [#] KRB-KRN. Black is a pawn up.} d2 {[%emt 0:01:46]} 42. f4 $2 {[%emt 0:01:56]} (42. Ke2) 42... Kf6 {[%emt 0:00:55]} 43. Kf3 {[%emt 0:00:27]} Rd3+ {[%emt 0:00:44]} 44. Ke4 {[%emt 0:00:19]} Rxg3 {[%emt 0:01:37]} 45. Ne3 {[%emt 0:00:00]} (45. Nxd2 $142 Bxd2 46. Rxd2) 45... Ke6 {[%emt 0:00:52]} 46. Nd5 {[%emt 0:00:29]} Bb4 {[%emt 0:00:43]} 47. Nxb4 axb4 {[%emt 0:00:06]} 48. Rxd2 {[%emt 0:01:20]} Rxb3 {[%emt 0:00:17] KR-KR. Black is two pawns up.} 49. Rd8 {[%emt 0:00:05]} Ra3 {[%emt 0:01:38]} 50. Re8+ {[%emt 0:00:12]} Kd6 {[%emt 0:00:53]} 51. Rd8+ {[%emt 0:00:17]} Kc7 {[%emt 0:00:32]} 52. Rg8 {[%emt 0:00:30]} (52. Rd4 $142 Rxa4 53. Kd3) 52... Rg3 {[%emt 0:00:14]} 53. Rg7+ {[%emt 0:00:48]} Kb6 {[%emt 0:00:20]} 54. Rd7 {[%emt 0:00:09]} b3 {[%emt 0:00:20]} 55. Rd5 {[%emt 0:00:19]} Kc6 {[%emt 0:00:46][%cal Og3e3] ( -> ...Re3+!)} 56. Rb5 {[%emt 0:00:28]} h4 {[%emt 0:00:32]} 57. f5 {[%emt 0:00:21]} gxf5+ {[%emt 0:00:32]} (57... h3 $142 58. Kf4 Rc3 (58... h2 $2 59. Kxg3 h1=Q 60. Rxb3 $19)) 58. Kf4 {[%emt 0:00:12]} Rc3 {[%emt 0:00:20] ( -> ...h3)} 59. Rxf5 {[%emt 0:00:34]} h3 {[%emt 0:00:15] Black mates.} 60. Ke4 {[%emt 0:00:27]} h2 {[%emt 0:00:51]} 61. Kd4 {[%emt 0:00:32]} h1=Q {[%emt 0:01:08]} ({Less strong is} 61... h1=R 62. Rf6+ Kc7 63. Kxc3 $17) 62. Rf6+ {[%emt 0:00:02]} Kd7 {[%emt 0:00:16]} 63. Kxc3 {[%emt 0:00:14]} Qa1+ {[%emt 0:02:22] Weighted Error Value: White=0.51/Black=0.13 (very precise)   Loses game:     	White=1     	---        Mistake:       	White=5     	Black=3      Inaccurate:     	White=6     	Black=2      OK:         	White=13    	Black=20     Best:        	White=1     	Black=2      Strong:       	---       	Black=4} 0-1